[Event "Titled Tuesday Blitz June 07 Early 2022"]
[White "Skliarov, Viktor"]
[Black "Suleymanli, Aydin"]
[WhiteFideId "14106736"]
[BlackFideId "13413937"]
[WhiteElo "2229"]
[BlackElo "2481"]
[Result "0-1"]
[Round "06"]
[TimeControl "180+1"]
[Date "2022.06.07"]
[WhiteClock "0:00:05"]
[BlackClock "0:01:17"]

1. e4 {[%clk 0:03:00]}  c5 {[%clk 0:02:53]} 2. Nf3 {[%clk 0:02:59]}  Nf6 {[%clk 0:02:52]} 3. e5 {[%clk 0:02:58]}  Nd5 {[%clk 0:02:53]} 4. Nc3 {[%clk 0:02:58]}  e6 {[%clk 0:02:53]} 5. Nxd5 {[%clk 0:02:58]}  exd5 {[%clk 0:02:53]} 6. d4 {[%clk 0:02:59]}  Nc6 {[%clk 0:02:53]} 7. dxc5 {[%clk 0:02:59]}  Bxc5 {[%clk 0:02:54]} 8. c3 {[%clk 0:02:58]}  d6 {[%clk 0:02:43]} 9. b4 {[%clk 0:02:48]}  Bb6 {[%clk 0:02:42]} 10. Qxd5 {[%clk 0:02:48]}  dxe5 {[%clk 0:02:30]} 11. Qxd8+ {[%clk 0:02:40]}  Bxd8 {[%clk 0:02:29]} 12. b5 {[%clk 0:02:33]}  Na5 {[%clk 0:02:29]} 13. Nxe5 {[%clk 0:02:32]}  Bf6 {[%clk 0:02:26]} 14. f4 {[%clk 0:02:22]}  O-O {[%clk 0:02:20]} 15. Bd3 {[%clk 0:02:11]}  Rd8 {[%clk 0:02:10]} 16. Bc2 {[%clk 0:01:53]}  Nc4 {[%clk 0:02:08]} 17. O-O {[%clk 0:01:19]}  Nxe5 {[%clk 0:02:06]} 18. fxe5 {[%clk 0:01:20]}  Bxe5 {[%clk 0:02:06]} 19. Bb3 {[%clk 0:01:20]}  Be6 {[%clk 0:01:58]} 20. Bxe6 {[%clk 0:01:19]}  fxe6 {[%clk 0:01:58]} 21. Bg5 {[%clk 0:01:19]}  Bxc3 {[%clk 0:01:49]} 22. Bxd8 {[%clk 0:00:36]}  Bxa1 {[%clk 0:01:48]} 23. Be7 {[%clk 0:00:37]}  Bd4+ {[%clk 0:01:46]} 24. Kh1 {[%clk 0:00:36]}  Re8 {[%clk 0:01:44]} 25. Bd6 {[%clk 0:00:35]}  e5 {[%clk 0:01:43]} 26. g3 {[%clk 0:00:32]}  h6 {[%clk 0:01:41]} 27. Kg2 {[%clk 0:00:31]}  Bb6 {[%clk 0:01:37]} 28. Kf3 {[%clk 0:00:29]}  Re6 {[%clk 0:01:32]} 29. Bb4 {[%clk 0:00:27]}  Rf6+ {[%clk 0:01:30]} 30. Ke2 {[%clk 0:00:27]}  Rxf1 {[%clk 0:01:30]} 31. Kxf1 {[%clk 0:00:28]}  Kf7 {[%clk 0:01:30]} 32. Ke2 {[%clk 0:00:26]}  e4 {[%clk 0:01:29]} 33. Bc3 {[%clk 0:00:19]}  g6 {[%clk 0:01:25]} 34. g4 {[%clk 0:00:17]}  Ke6 {[%clk 0:01:20]} 35. a4 {[%clk 0:00:16]}  Bc5 {[%clk 0:01:19]} 36. h3 {[%clk 0:00:13]}  Kd5 {[%clk 0:01:18]} 37. Bd2 {[%clk 0:00:13]}  h5 {[%clk 0:01:18]} 38. gxh5 {[%clk 0:00:13]}  gxh5 {[%clk 0:01:19]} 39. Be1 {[%clk 0:00:06]}  Kc4 {[%clk 0:01:18]} 40. Bd2 {[%clk 0:00:04]}  Kb3 {[%clk 0:01:18]} 41. a5 {[%clk 0:00:05]}  Kc4 {[%clk 0:01:18]} 42. a6 {[%clk 0:00:04]}  b6 {[%clk 0:01:17]} 43. Be3 {[%clk 0:00:05]}  Kxb5 {[%clk 0:01:17]} 0-1


[Site "https://www.chess.com"]

[Event "Titled Tuesday Blitz June 07 Early 2022"]
[White "Slugin, Sergey"]
[Black "Howell, David W L"]
[WhiteFideId "4122569"]
[BlackFideId "410608"]
[WhiteElo "2358"]
[BlackElo "2559"]
[Result "0-1"]
[Round "06"]
[TimeControl "180+1"]
[Date "2022.06.07"]
[WhiteClock "0:00:05"]
[BlackClock "0:00:13"]

1. c4 {[%clk 0:03:00]}  h5 {[%clk 0:02:47]} 2. Nc3 {[%clk 0:02:59]}  c5 {[%clk 0:02:45]} 3. Nf3 {[%clk 0:02:58]}  Nc6 {[%clk 0:02:40]} 4. d4 {[%clk 0:02:56]}  cxd4 {[%clk 0:02:41]} 5. Nxd4 {[%clk 0:02:57]}  d6 {[%clk 0:02:40]} 6. e4 {[%clk 0:02:52]}  h4 {[%clk 0:02:38]} 7. h3 {[%clk 0:02:51]}  g6 {[%clk 0:02:14]} 8. Be3 {[%clk 0:02:51]}  Bg7 {[%clk 0:02:14]} 9. Be2 {[%clk 0:02:51]}  Nf6 {[%clk 0:02:09]} 10. Qd2 {[%clk 0:02:51]}  Bd7 {[%clk 0:02:00]} 11. Rc1 {[%clk 0:02:50]}  Rc8 {[%clk 0:01:54]} 12. b3 {[%clk 0:02:51]}  Nxd4 {[%clk 0:01:51]} 13. Bxd4 {[%clk 0:02:52]}  Qa5 {[%clk 0:01:48]} 14. Bf3 {[%clk 0:02:43]}  Bh6 {[%clk 0:01:43]} 15. Be3 {[%clk 0:02:40]}  Bxe3 {[%clk 0:01:44]} 16. Qxe3 {[%clk 0:02:41]}  Qc5 {[%clk 0:01:38]} 17. Qd2 {[%clk 0:02:37]}  Qe5 {[%clk 0:01:37]} 18. O-O {[%clk 0:02:33]}  O-O {[%clk 0:01:35]} 19. Rfe1 {[%clk 0:02:29]}  Kg7 {[%clk 0:01:30]} 20. Nd5 {[%clk 0:02:27]}  Rfe8 {[%clk 0:01:30]} 21. Qe3 {[%clk 0:02:20]}  Nxd5 {[%clk 0:01:23]} 22. cxd5 {[%clk 0:02:15]}  b6 {[%clk 0:01:21]} 23. Qd2 {[%clk 0:02:08]}  Rc5 {[%clk 0:01:11]} 24. b4 {[%clk 0:02:05]}  Rcc8 {[%clk 0:01:11]} 25. a3 {[%clk 0:02:01]}  f6 {[%clk 0:01:07]} 26. Qd3 {[%clk 0:01:53]}  Qf4 {[%clk 0:01:03]} 27. Qd1 {[%clk 0:01:27]}  Qg5 {[%clk 0:00:47]} 28. Kh1 {[%clk 0:01:19]}  Qf4 {[%clk 0:00:47]} 29. Kg1 {[%clk 0:01:19]}  Qg5 {[%clk 0:00:44]} 30. Kh1 {[%clk 0:01:20]}  Rf8 {[%clk 0:00:37]} 31. Re3 {[%clk 0:00:55]}  Rxc1 {[%clk 0:00:36]} 32. Qxc1 {[%clk 0:00:56]}  Rc8 {[%clk 0:00:36]} 33. Qd2 {[%clk 0:00:55]}  Ba4 {[%clk 0:00:33]} 34. Bd1 {[%clk 0:00:46]}  Bd7 {[%clk 0:00:33]} 35. Bb3 {[%clk 0:00:36]}  Qe5 {[%clk 0:00:30]} 36. Re1 {[%clk 0:00:30]}  g5 {[%clk 0:00:30]} 37. Bd1 {[%clk 0:00:27]}  Qc3 {[%clk 0:00:25]} 38. Qe2 {[%clk 0:00:12]}  Qxa3 {[%clk 0:00:24]} 39. f4 {[%clk 0:00:13]}  gxf4 {[%clk 0:00:19]} 40. Qh5 {[%clk 0:00:11]}  Qg3 {[%clk 0:00:14]} 41. Rf1 {[%clk 0:00:09]}  Rc1 {[%clk 0:00:14]} 42. Be2 {[%clk 0:00:06]}  Rxf1+ {[%clk 0:00:13]} 43. Bxf1 {[%clk 0:00:07]}  Qe1 {[%clk 0:00:13]} 44. Kg1 {[%clk 0:00:05]}  Qe3+ {[%clk 0:00:12]} 45. Kh1 {[%clk 0:00:05]}  Qf2 {[%clk 0:00:12]} 46. Bd3 {[%clk 0:00:03]}  Qe1+ {[%clk 0:00:12]} 47. Kh2 {[%clk 0:00:04]}  Qg3+ {[%clk 0:00:13]} 48. Kh1 {[%clk 0:00:04]}  Qxd3 {[%clk 0:00:13]} 49. Qxh4 {[%clk 0:00:05]}  Qxe4 {[%clk 0:00:13]} 0-1


[Site "https://www.chess.com"]

[Event "Titled Tuesday Blitz June 07 Early 2022"]
[White "Srinath, Rao S.V."]
[Black "Rustemov, Alexander"]
[WhiteFideId "5028876"]
[BlackFideId "4119002"]
[WhiteElo "2181"]
[BlackElo "2784"]
[Result "0-1"]
[Round "06"]
[TimeControl "180+1"]
[Date "2022.06.07"]
[WhiteClock "0:00:18"]
[BlackClock "0:01:29"]

1. e4 {[%clk 0:03:00]}  e6 {[%clk 0:02:59]} 2. d4 {[%clk 0:03:00]}  d5 {[%clk 0:03:00]} 3. Nc3 {[%clk 0:03:00]}  Bb4 {[%clk 0:02:59]} 4. e5 {[%clk 0:03:00]}  c5 {[%clk 0:02:59]} 5. a3 {[%clk 0:03:01]}  Bxc3+ {[%clk 0:02:59]} 6. bxc3 {[%clk 0:03:02]}  Ne7 {[%clk 0:03:00]} 7. h4 {[%clk 0:02:59]}  Qc7 {[%clk 0:02:59]} 8. Nf3 {[%clk 0:02:58]}  b6 {[%clk 0:02:59]} 9. h5 {[%clk 0:02:57]}  h6 {[%clk 0:02:58]} 10. Rh4 {[%clk 0:02:54]}  Ba6 {[%clk 0:02:56]} 11. Bxa6 {[%clk 0:02:53]}  Nxa6 {[%clk 0:02:57]} 12. Rg4 {[%clk 0:02:53]}  Nf5 {[%clk 0:02:55]} 13. Rf4 {[%clk 0:02:53]}  Nb8 {[%clk 0:02:54]} 14. g4 {[%clk 0:02:51]}  Ne7 {[%clk 0:02:53]} 15. a4 {[%clk 0:02:44]}  Nd7 {[%clk 0:02:53]} 16. Ba3 {[%clk 0:02:40]}  f6 {[%clk 0:02:45]} 17. Qe2 {[%clk 0:02:25]}  O-O {[%clk 0:02:45]} 18. O-O-O {[%clk 0:02:00]}  fxe5 {[%clk 0:02:41]} 19. Rxf8+ {[%clk 0:01:58]}  Rxf8 {[%clk 0:02:41]} 20. dxe5 {[%clk 0:01:56]}  Nc6 {[%clk 0:02:27]} 21. Re1 {[%clk 0:01:50]}  Rf4 {[%clk 0:02:25]} 22. g5 {[%clk 0:01:47]}  Re4 {[%clk 0:02:25]} 23. Qf1 {[%clk 0:01:44]}  Ndxe5 {[%clk 0:02:24]} 24. Rxe4 {[%clk 0:01:41]}  dxe4 {[%clk 0:02:22]} 25. Nd2 {[%clk 0:01:34]}  Nf3 {[%clk 0:02:14]} 26. gxh6 {[%clk 0:01:21]}  Qf4 {[%clk 0:02:09]} 27. Qe2 {[%clk 0:01:19]}  gxh6 {[%clk 0:02:06]} 28. Kd1 {[%clk 0:01:11]}  Ng5 {[%clk 0:01:47]} 29. Qc4 {[%clk 0:00:50]}  Kf7 {[%clk 0:01:44]} 30. Qb5 {[%clk 0:00:44]}  Ne5 {[%clk 0:01:41]} 31. Qa6 {[%clk 0:00:41]}  Qxf2 {[%clk 0:01:34]} 32. Qb7+ {[%clk 0:00:38]}  Kf6 {[%clk 0:01:33]} 33. a5 {[%clk 0:00:18]}  e3 {[%clk 0:01:29]} 0-1


[Site "https://www.chess.com"]

[Event "Titled Tuesday Blitz June 07 Early 2022"]
[White "Stribuk, Artiom"]
[Black "Florescu, Codrut-Constantin"]
[WhiteFideId "13515659"]
[BlackFideId "1202200"]
[WhiteElo "2259"]
[BlackElo "2191"]
[Result "1/2-1/2"]
[Round "06"]
[TimeControl "180+1"]
[Date "2022.06.07"]
[WhiteClock "0:00:07"]
[BlackClock "0:00:18"]

1. d4 {[%clk 0:03:00]}  Nf6 {[%clk 0:02:59]} 2. c4 {[%clk 0:02:59]}  e6 {[%clk 0:02:59]} 3. Nc3 {[%clk 0:02:58]}  Bb4 {[%clk 0:02:59]} 4. Qc2 {[%clk 0:02:54]}  O-O {[%clk 0:02:59]} 5. e4 {[%clk 0:02:54]}  d6 {[%clk 0:02:59]} 6. a3 {[%clk 0:02:45]}  Bxc3+ {[%clk 0:02:57]} 7. bxc3 {[%clk 0:02:46]}  e5 {[%clk 0:02:57]} 8. Bd3 {[%clk 0:02:47]}  h6 {[%clk 0:02:56]} 9. Ne2 {[%clk 0:02:47]}  Nc6 {[%clk 0:02:56]} 10. O-O {[%clk 0:02:46]}  b6 {[%clk 0:02:46]} 11. f4 {[%clk 0:02:42]}  Ba6 {[%clk 0:02:38]} 12. fxe5 {[%clk 0:01:49]}  dxe5 {[%clk 0:02:37]} 13. d5 {[%clk 0:01:49]}  Na5 {[%clk 0:02:28]} 14. Ng3 {[%clk 0:01:49]}  Bxc4 {[%clk 0:02:20]} 15. Nf5 {[%clk 0:01:44]}  Nh7 {[%clk 0:02:13]} 16. Rf3 {[%clk 0:01:28]}  Kh8 {[%clk 0:01:59]} 17. Rg3 {[%clk 0:01:27]}  Rg8 {[%clk 0:01:56]} 18. Be3 {[%clk 0:01:23]}  Bxd3 {[%clk 0:01:30]} 19. Qxd3 {[%clk 0:01:22]}  Nb7 {[%clk 0:01:31]} 20. Rf1 {[%clk 0:01:19]}  Nd6 {[%clk 0:01:21]} 21. Nxd6 {[%clk 0:01:07]}  Qxd6 {[%clk 0:01:22]} 22. Rxf7 {[%clk 0:01:07]}  Raf8 {[%clk 0:01:21]} 23. Qf1 {[%clk 0:01:02]}  Qxa3 {[%clk 0:01:18]} 24. h4 {[%clk 0:00:38]}  Qxc3 {[%clk 0:01:04]} 25. Kh2 {[%clk 0:00:26]}  Qb4 {[%clk 0:01:03]} 26. Qf5 {[%clk 0:00:16]}  Rxf7 {[%clk 0:00:51]} 27. Qxf7 {[%clk 0:00:16]}  Qxe4 {[%clk 0:00:44]} 28. Kh3 {[%clk 0:00:17]}  g5 {[%clk 0:00:30]} 29. hxg5 {[%clk 0:00:14]}  Qg6 {[%clk 0:00:27]} 30. Qxg6 {[%clk 0:00:07]}  Rxg6 {[%clk 0:00:28]} 31. gxh6 {[%clk 0:00:08]}  Rxg3+ {[%clk 0:00:29]} 32. Kxg3 {[%clk 0:00:08]}  a5 {[%clk 0:00:28]} 33. Kf3 {[%clk 0:00:08]}  Nf6 {[%clk 0:00:28]} 34. g4 {[%clk 0:00:06]}  Kh7 {[%clk 0:00:28]} 35. g5 {[%clk 0:00:06]}  Nxd5 {[%clk 0:00:28]} 36. Bc1 {[%clk 0:00:06]}  Nc3 {[%clk 0:00:27]} 37. Kg4 {[%clk 0:00:06]}  Kg6 {[%clk 0:00:26]} 38. Bb2 {[%clk 0:00:06]}  Nd5 {[%clk 0:00:23]} 39. Bxe5 {[%clk 0:00:06]}  b5 {[%clk 0:00:22]} 40. Kf3 {[%clk 0:00:07]}  Ne7 {[%clk 0:00:20]} 41. Ke4 {[%clk 0:00:07]}  c6 {[%clk 0:00:19]} 42. Kd4 {[%clk 0:00:05]}  Nf5+ {[%clk 0:00:17]} 43. Kc5 {[%clk 0:00:05]}  Nxh6 {[%clk 0:00:16]} 44. gxh6 {[%clk 0:00:05]}  Kxh6 {[%clk 0:00:17]} 45. Kxc6 {[%clk 0:00:05]}  b4 {[%clk 0:00:17]} 46. Kb5 {[%clk 0:00:06]}  b3 {[%clk 0:00:17]} 47. Bb2 {[%clk 0:00:06]}  a4 {[%clk 0:00:17]} 48. Kxa4 {[%clk 0:00:06]}  Kg6 {[%clk 0:00:18]} 49. Kxb3 {[%clk 0:00:07]} 1/2-1/2


[Site "https://www.chess.com"]

[Event "Titled Tuesday Blitz June 07 Early 2022"]
[White "Vokhidov, Shamsiddin"]
[Black "Cardoso Cardoso, Jose Gabriel"]
[WhiteFideId "14204223"]
[BlackFideId "4430492"]
[WhiteElo "2611"]
[BlackElo "2485"]
[Result "1-0"]
[Round "06"]
[TimeControl "180+1"]
[Date "2022.06.07"]
[WhiteClock "0:00:10"]
[BlackClock "0:00:02"]

1. e4 {[%clk 0:03:00]}  c5 {[%clk 0:02:18]} 2. Nf3 {[%clk 0:03:00]}  e6 {[%clk 0:02:18]} 3. d4 {[%clk 0:03:00]}  cxd4 {[%clk 0:02:19]} 4. Nxd4 {[%clk 0:03:01]}  Nc6 {[%clk 0:02:19]} 5. Nc3 {[%clk 0:03:01]}  Qc7 {[%clk 0:02:18]} 6. Be3 {[%clk 0:03:01]}  a6 {[%clk 0:02:18]} 7. Qf3 {[%clk 0:03:01]}  Nf6 {[%clk 0:02:14]} 8. O-O-O {[%clk 0:02:57]}  Rb8 {[%clk 0:02:14]} 9. Kb1 {[%clk 0:02:53]}  Bb4 {[%clk 0:02:02]} 10. Bf4 {[%clk 0:02:20]}  e5 {[%clk 0:01:42]} 11. Nd5 {[%clk 0:01:34]}  Nxd5 {[%clk 0:01:40]} 12. exd5 {[%clk 0:01:35]}  exf4 {[%clk 0:01:29]} 13. dxc6 {[%clk 0:01:34]}  O-O {[%clk 0:01:23]} 14. cxd7 {[%clk 0:01:25]}  Bxd7 {[%clk 0:01:22]} 15. Bd3 {[%clk 0:01:24]}  Rbd8 {[%clk 0:01:04]} 16. Ne2 {[%clk 0:01:22]}  Bc6 {[%clk 0:00:56]} 17. Be4 {[%clk 0:01:20]}  Bxe4 {[%clk 0:00:25]} 18. Qxe4 {[%clk 0:01:21]}  Bc5 {[%clk 0:00:23]} 19. Qf3 {[%clk 0:01:08]}  Qc6 {[%clk 0:00:20]} 20. Qxc6 {[%clk 0:00:59]}  bxc6 {[%clk 0:00:21]} 21. Nxf4 {[%clk 0:00:58]}  Bxf2 {[%clk 0:00:21]} 22. Nd3 {[%clk 0:00:58]}  Bb6 {[%clk 0:00:18]} 23. Nb4 {[%clk 0:00:56]}  c5 {[%clk 0:00:12]} 24. Nd5 {[%clk 0:00:56]}  Ba5 {[%clk 0:00:13]} 25. c3 {[%clk 0:00:50]}  g6 {[%clk 0:00:12]} 26. b4 {[%clk 0:00:33]}  cxb4 {[%clk 0:00:12]} 27. cxb4 {[%clk 0:00:34]}  Bxb4 {[%clk 0:00:11]} 28. Nxb4 {[%clk 0:00:26]}  Rb8 {[%clk 0:00:11]} 29. a3 {[%clk 0:00:25]}  a5 {[%clk 0:00:12]} 30. Rd4 {[%clk 0:00:26]}  axb4 {[%clk 0:00:12]} 31. axb4 {[%clk 0:00:27]}  Rfe8 {[%clk 0:00:10]} 32. Rc1 {[%clk 0:00:24]}  Re2 {[%clk 0:00:08]} 33. Rc2 {[%clk 0:00:24]}  Re5 {[%clk 0:00:06]} 34. Kb2 {[%clk 0:00:23]}  Rb7 {[%clk 0:00:06]} 35. Kb3 {[%clk 0:00:19]}  f5 {[%clk 0:00:07]} 36. Rcd2 {[%clk 0:00:15]}  Ree7 {[%clk 0:00:04]} 37. Rd5 {[%clk 0:00:13]}  Re3+ {[%clk 0:00:03]} 38. R2d3 {[%clk 0:00:13]}  Rxd3+ {[%clk 0:00:03]} 39. Rxd3 {[%clk 0:00:13]}  Kf7 {[%clk 0:00:03]} 40. Kc4 {[%clk 0:00:13]}  Rc7+ {[%clk 0:00:03]} 41. Kb5 {[%clk 0:00:12]}  Rb7+ {[%clk 0:00:03]} 42. Kc5 {[%clk 0:00:13]}  Rc7+ {[%clk 0:00:03]} 43. Kb6 {[%clk 0:00:10]}  Rc2 {[%clk 0:00:04]} 44. g3 {[%clk 0:00:08]}  Rxh2 {[%clk 0:00:04]} 45. b5 {[%clk 0:00:08]}  Rb2 {[%clk 0:00:04]} 46. Kc6 {[%clk 0:00:08]}  Kf6 {[%clk 0:00:04]} 47. b6 {[%clk 0:00:08]}  g5 {[%clk 0:00:03]} 48. b7 {[%clk 0:00:09]}  f4 {[%clk 0:00:03]} 49. gxf4 {[%clk 0:00:09]}  gxf4 {[%clk 0:00:04]} 50. Rd4 {[%clk 0:00:08]}  Ke5 {[%clk 0:00:04]} 51. Rd5+ {[%clk 0:00:09]}  Ke4 {[%clk 0:00:02]} 52. Rb5 {[%clk 0:00:10]}  Rc2+ {[%clk 0:00:02]} 53. Kb6 {[%clk 0:00:10]} 1-0


[Site "https://www.chess.com"]

[Event "Titled Tuesday Blitz June 07 Early 2022"]
[White "Xiong, Jeffery"]
[Black "Nesterov, Arseniy"]
[WhiteFideId "2047640"]
[BlackFideId "24198455"]
[WhiteElo "2714"]
[BlackElo "2489"]
[Result "1-0"]
[Round "06"]
[TimeControl "180+1"]
[Date "2022.06.07"]
[WhiteClock "0:00:34"]
[BlackClock "0:00:02"]

1. e4 {[%clk 0:03:00]}  e5 {[%clk 0:03:00]} 2. Nf3 {[%clk 0:03:01]}  Nc6 {[%clk 0:03:00]} 3. Nc3 {[%clk 0:03:02]}  Nf6 {[%clk 0:03:00]} 4. d4 {[%clk 0:03:03]}  exd4 {[%clk 0:02:59]} 5. Nxd4 {[%clk 0:03:04]}  Bb4 {[%clk 0:02:58]} 6. Nxc6 {[%clk 0:03:04]}  bxc6 {[%clk 0:02:58]} 7. Bd3 {[%clk 0:03:05]}  O-O {[%clk 0:02:58]} 8. O-O {[%clk 0:03:05]}  d5 {[%clk 0:02:58]} 9. exd5 {[%clk 0:03:06]}  cxd5 {[%clk 0:02:58]} 10. h3 {[%clk 0:03:07]}  c6 {[%clk 0:02:58]} 11. Qf3 {[%clk 0:03:07]}  h6 {[%clk 0:02:56]} 12. Bf4 {[%clk 0:03:07]}  Bd6 {[%clk 0:02:56]} 13. Rfe1 {[%clk 0:03:05]}  Be6 {[%clk 0:02:34]} 14. Ne2 {[%clk 0:03:05]}  c5 {[%clk 0:02:18]} 15. Rad1 {[%clk 0:03:03]}  Re8 {[%clk 0:02:07]} 16. b3 {[%clk 0:02:58]}  Bxf4 {[%clk 0:01:48]} 17. Nxf4 {[%clk 0:02:59]}  Qd6 {[%clk 0:01:39]} 18. c4 {[%clk 0:02:59]}  d4 {[%clk 0:01:35]} 19. Nxe6 {[%clk 0:02:55]}  fxe6 {[%clk 0:01:36]} 20. Bg6 {[%clk 0:02:56]}  Rf8 {[%clk 0:01:29]} 21. Re2 {[%clk 0:02:55]}  Nd7 {[%clk 0:01:15]} 22. Qe4 {[%clk 0:02:50]}  e5 {[%clk 0:01:14]} 23. Rde1 {[%clk 0:02:38]}  Rad8 {[%clk 0:01:10]} 24. Qd3 {[%clk 0:02:37]}  Rf6 {[%clk 0:01:05]} 25. Bh7+ {[%clk 0:02:35]}  Kh8 {[%clk 0:01:04]} 26. Bf5 {[%clk 0:02:36]}  Rdf8 {[%clk 0:00:46]} 27. Bxd7 {[%clk 0:02:36]}  Qxd7 {[%clk 0:00:47]} 28. Rxe5 {[%clk 0:02:37]}  Rxf2 {[%clk 0:00:46]} 29. Rxc5 {[%clk 0:02:38]}  Rxa2 {[%clk 0:00:23]} 30. Rf1 {[%clk 0:01:37]}  Rxf1+ {[%clk 0:00:21]} 31. Qxf1 {[%clk 0:01:38]}  Qe6 {[%clk 0:00:10]} 32. Kh1 {[%clk 0:01:06]}  Re2 {[%clk 0:00:05]} 33. Qf4 {[%clk 0:00:50]}  d3 {[%clk 0:00:04]} 34. Rd5 {[%clk 0:00:46]}  Re3 {[%clk 0:00:02]} 35. Rd6 {[%clk 0:00:37]}  Qe7 {[%clk 0:00:02]} 36. Qd4 {[%clk 0:00:35]}  Rg3 {[%clk 0:00:01]} 37. Rxh6+ {[%clk 0:00:34]}  Kg8 {[%clk 0:00:01]} 38. Qd5+ {[%clk 0:00:34]}  Kf8 {[%clk 0:00:02]} 39. Rh8# {[%clk 0:00:34]} 1-0


[Site "https://www.chess.com"]

[Event "Titled Tuesday Blitz June 07 Early 2022"]
[White "Aitbayev, Aslan"]
[Black "Terry, Renato"]
[WhiteFideId "13704613"]
[BlackFideId "3803457"]
[WhiteElo "2385"]
[BlackElo "2577"]
[Result "0-1"]
[Round "07"]
[TimeControl "180+1"]
[Date "2022.06.07"]
[WhiteClock "0:00:05"]
[BlackClock "0:00:03"]

1. e4 {[%clk 0:03:00]}  e6 {[%clk 0:02:59]} 2. d4 {[%clk 0:03:00]}  d5 {[%clk 0:03:00]} 3. Nd2 {[%clk 0:03:00]}  Be7 {[%clk 0:03:00]} 4. Ngf3 {[%clk 0:02:48]}  Nf6 {[%clk 0:02:59]} 5. e5 {[%clk 0:02:47]}  Nfd7 {[%clk 0:03:00]} 6. Bd3 {[%clk 0:02:45]}  c5 {[%clk 0:03:00]} 7. c3 {[%clk 0:02:45]}  Nc6 {[%clk 0:03:01]} 8. O-O {[%clk 0:02:44]}  g5 {[%clk 0:03:02]} 9. Nb1 {[%clk 0:02:37]}  h5 {[%clk 0:02:55]} 10. Be3 {[%clk 0:02:32]}  g4 {[%clk 0:02:53]} 11. Ne1 {[%clk 0:02:32]}  Qb6 {[%clk 0:02:54]} 12. b3 {[%clk 0:02:18]}  cxd4 {[%clk 0:02:52]} 13. cxd4 {[%clk 0:02:18]}  a5 {[%clk 0:01:56]} 14. Nc2 {[%clk 0:02:11]}  a4 {[%clk 0:01:56]} 15. Nc3 {[%clk 0:02:07]}  axb3 {[%clk 0:01:50]} 16. axb3 {[%clk 0:02:06]}  Rxa1 {[%clk 0:01:51]} 17. Qxa1 {[%clk 0:02:02]}  Rg8 {[%clk 0:01:26]} 18. Nb5 {[%clk 0:01:55]}  Ndb8 {[%clk 0:01:13]} 19. f3 {[%clk 0:01:37]}  g3 {[%clk 0:01:08]} 20. hxg3 {[%clk 0:01:35]}  Rxg3 {[%clk 0:01:03]} 21. Qe1 {[%clk 0:01:29]}  Rg8 {[%clk 0:01:01]} 22. f4 {[%clk 0:01:26]}  Na6 {[%clk 0:00:56]} 23. Qe2 {[%clk 0:01:21]}  Nab4 {[%clk 0:00:53]} 24. Nxb4 {[%clk 0:01:02]}  Nxb4 {[%clk 0:00:54]} 25. Bb1 {[%clk 0:00:40]}  h4 {[%clk 0:00:53]} 26. Kh1 {[%clk 0:00:27]}  Bd7 {[%clk 0:00:52]} 27. Nc3 {[%clk 0:00:25]}  Rg3 {[%clk 0:00:35]} 28. Rf3 {[%clk 0:00:24]}  Nc6 {[%clk 0:00:36]} 29. Rxg3 {[%clk 0:00:17]}  hxg3 {[%clk 0:00:37]} 30. Qd1 {[%clk 0:00:13]}  Bb4 {[%clk 0:00:36]} 31. Ne2 {[%clk 0:00:13]}  Qd8 {[%clk 0:00:37]} 32. Kg1 {[%clk 0:00:10]}  Qh4 {[%clk 0:00:37]} 33. Kf1 {[%clk 0:00:10]}  Be7 {[%clk 0:00:14]} 34. Qe1 {[%clk 0:00:08]}  Qh1+ {[%clk 0:00:14]} 35. Bg1 {[%clk 0:00:08]}  Nb4 {[%clk 0:00:14]} 36. Qxg3 {[%clk 0:00:06]}  Bb5 {[%clk 0:00:14]} 37. Qf3 {[%clk 0:00:06]}  Nc6 {[%clk 0:00:05]} 38. Bd3 {[%clk 0:00:06]}  Bxd3 {[%clk 0:00:03]} 39. Qxd3 {[%clk 0:00:07]}  Qh4 {[%clk 0:00:03]} 40. Qf3 {[%clk 0:00:06]}  Qh7 {[%clk 0:00:03]} 41. g3 {[%clk 0:00:06]}  Qc2 {[%clk 0:00:02]} 42. g4 {[%clk 0:00:06]}  Na5 {[%clk 0:00:03]} 43. f5 {[%clk 0:00:06]}  Nxb3 {[%clk 0:00:03]} 44. fxe6 {[%clk 0:00:05]}  Nd2+ {[%clk 0:00:03]} 0-1


[Site "https://www.chess.com"]

[Event "Titled Tuesday Blitz June 07 Early 2022"]
[White "Andreikin, Dmitry"]
[Black "Martin Carmona, Gaston Manuel"]
[WhiteFideId "4158814"]
[BlackFideId "22284567"]
[WhiteElo "2736"]
[BlackElo "2162"]
[Result "1-0"]
[Round "07"]
[TimeControl "180+1"]
[Date "2022.06.07"]
[WhiteClock "0:01:44"]
[BlackClock "0:00:43"]

1. d4 {[%clk 0:03:00]}  Nf6 {[%clk 0:02:59]} 2. c4 {[%clk 0:03:00]}  e6 {[%clk 0:03:00]} 3. Nf3 {[%clk 0:02:59]}  d5 {[%clk 0:02:59]} 4. g3 {[%clk 0:02:59]}  Be7 {[%clk 0:02:59]} 5. Bg2 {[%clk 0:02:59]}  O-O {[%clk 0:03:00]} 6. O-O {[%clk 0:02:59]}  c6 {[%clk 0:03:00]} 7. Nbd2 {[%clk 0:02:59]}  Nbd7 {[%clk 0:03:00]} 8. Qc2 {[%clk 0:02:58]}  b6 {[%clk 0:02:57]} 9. e4 {[%clk 0:02:58]}  Bb7 {[%clk 0:02:55]} 10. e5 {[%clk 0:02:58]}  Ne8 {[%clk 0:02:55]} 11. cxd5 {[%clk 0:02:54]}  cxd5 {[%clk 0:02:55]} 12. Nb1 {[%clk 0:02:54]}  a5 {[%clk 0:02:50]} 13. Nc3 {[%clk 0:02:54]}  Ba6 {[%clk 0:02:48]} 14. Rd1 {[%clk 0:02:53]}  Nc7 {[%clk 0:02:48]} 15. h4 {[%clk 0:02:49]}  h6 {[%clk 0:02:47]} 16. Bf1 {[%clk 0:02:48]}  Bxf1 {[%clk 0:02:46]} 17. Rxf1 {[%clk 0:02:46]}  b5 {[%clk 0:02:47]} 18. Ne2 {[%clk 0:02:45]}  b4 {[%clk 0:02:35]} 19. Nf4 {[%clk 0:02:46]}  Rc8 {[%clk 0:02:32]} 20. Nh5 {[%clk 0:02:44]}  f5 {[%clk 0:02:17]} 21. exf6 {[%clk 0:02:37]}  Nxf6 {[%clk 0:02:17]} 22. Nf4 {[%clk 0:02:23]}  Ne4 {[%clk 0:02:14]} 23. Ne5 {[%clk 0:02:21]}  Bd6 {[%clk 0:02:10]} 24. Neg6 {[%clk 0:02:09]}  Rf6 {[%clk 0:02:05]} 25. h5 {[%clk 0:02:06]}  Nb5 {[%clk 0:01:42]} 26. Qd3 {[%clk 0:02:05]}  Qd7 {[%clk 0:01:42]} 27. Be3 {[%clk 0:02:02]}  Rc4 {[%clk 0:01:26]} 28. Rac1 {[%clk 0:01:59]}  Qc8 {[%clk 0:01:22]} 29. b3 {[%clk 0:01:53]}  Rxc1 {[%clk 0:01:19]} 30. Rxc1 {[%clk 0:01:54]}  Nbc3 {[%clk 0:01:19]} 31. Kg2 {[%clk 0:01:48]}  Bxf4 {[%clk 0:00:47]} 32. Ne7+ {[%clk 0:01:45]}  Kf7 {[%clk 0:00:43]} 33. Nxc8 {[%clk 0:01:46]}  Bxe3 {[%clk 0:00:43]} 34. Qxe3 {[%clk 0:01:44]} 1-0


[Site "https://www.chess.com"]